Cogmind - Beta 17 @@@ ROGUE MODE // 2026.08.03 @ 04:09:45 Player: OBLIQUE Result: Destroyed by S-27 Virus with Autogun Performance ------------- Evolutions (4) 2000 Regions Visited (14) 2800 Robots Destroyed (174) 870 Value Destroyed (5392) 5392 Prototype IDs (36) 720 Alien Tech Used (0) 0 Bonus (905) 905 TOTAL SCORE: 12687 Bonus ------- High Alert Combat Kills 47 Follower Combat Kills 58 Entered Garrisons 200 Aligned with FarCom 300 Acquired ECA 300 Cogmind --------- Core Integrity 0/850 Matter 52/300 Energy 99/100 System Corruption 1% Temperature Cool (0) Movement Core (50) Location -6/Lower Caves Parts ------- > --- POWER (1) -------- (None) > --- PROPULSION (3) --- (None) > --- UTILITY (9) ------ Visual Processing Unit Improved Targeting Computer Advanced Targeting Computer > --- WEAPON (2) ------- (None) > --- INVENTORY (5) ---- Matter Compressor (0) Matter Compressor (0) Improved Signal Interpreter Advanced Terrain Scanner Skeleton Box Peak State ------------ > --- POWER ------------ Heavy Deuterium Engine > --- PROPULSION ------- Improved Treads Advanced Treads Medium Treads > --- UTILITY ---------- Improved Heat Sink Large Storage Unit Visual Processing Unit Encrypted Comm Array Makeshift Targeting Computer Advanced Targeting Computer Target Analyzer Improved Medium Armor Plating Tractor Beam > --- WEAPON ----------- Heavy Assault Cannon > --- INVENTORY -------- Micro Fission Core Light Treads Advanced Treads Improved Heat Sink Large Matter Pod Matter Compressor Improved Signal Interpreter Advanced Terrain Scanner Transmission Jammer Skeleton Box Assault Cannon Heavy Assault Cannon Gauss Cannon Fire Trap [Rating: 49] Favorites ----------- Power Heavy Deuterium Engine Engine Heavy Deuterium Engine Power Core Micro Fission Core Propulsion Light Treads Treads Light Treads Utility Advanced Targeting Computer Device Tractor Beam Storage Large Storage Unit Processor Advanced Targeting Computer Hackware Hacking Suite Protection Improved Medium Armor Plating Weapon Heavy Assault Cannon Ballistic Gun Assault Rifle Ballistic Cannon Heavy Assault Cannon Build | -11 -10 -10 -9 -9 -9 -8 -8 -7 -7 -7 -7 -7 -6 -6 ------- Run | Yrd Mat Min Mat Min Exi Min Mat Fac Gar Fac Low Low Fac Low Slots Evolved 8 | . . . 2 . . . 2 2 . . . . 2 . Power . | . . . . . . . . . . . . . . . Propulsion 1 | . . . . . . . . 1 . . . . . . Utility 7 | . . . 2 . . . 2 1 . . . . 2 . Weapon . | . . . . . . . . . . . . . . . Parts Attached 77 | 6 5 . 16 . 1 . 8 14 3 5 4 . 15 . Power 10 | 1 . . 3 . 1 . 1 1 1 1 . . 1 . Engine 9 | 1 . . 3 . 1 . 1 1 1 1 . . . . Core 1 | . . . . . . . . . . . . . 1 . Reactor . | . . . . . . . . . . . . . . . Propulsion 17 | 2 . . 5 . . . 2 3 . 2 . . 3 . Treads 17 | 2 . . 5 . . . 2 3 . 2 . . 3 . Leg . | . . . . . . . . . . . . . . . Wheel . | . . . . . . . . . . . . . . . Hover . | . . . . . . . . . . . . . . . Flight . | . . . . . . . . . . . . . . . Utility 35 | 1 4 . 5 . . . 4 9 1 2 3 . 6 . Device 14 | . 1 . 1 . . . 1 6 . 2 2 . 1 . Storage 5 | 1 2 . 1 . . . . . . . . . 1 . Processor 9 | . 1 . 3 . . . 1 1 . . 1 . 2 . Hackware 1 | . . . . . . . . . . . . . 1 . Protection 6 | . . . . . . . 2 2 1 . . . 1 . Artifact . | . . . . . . . . . . . . . . . Weapon 15 | 2 1 . 3 . . . 1 1 1 . 1 . 5 . Energy Gun . | . . . . . . . . . . . . . . . Energy Cannon . | . . . . . . . . . . . . . . . Ballistic Gun 4 | 2 . . 1 . . . . . . . . . 1 . Ballistic Cannon 11 | . 1 . 2 . . . 1 1 1 . 1 . 4 . Launcher . | . . . . . . . . . . . . . . . Special Weapon . | . . . . . . . . . . . . . . . Impact Weapon . | . . . . . . . . . . . . . . . Slashing Weapon . | . . . . . . . . . . . . . . . Piercing Weapon . | . . . . . . . . . . . . . . . Special Melee Weapon . | . . . . . . . . . . . . . . . Unidentified Prototypes 1 | . . . . . . . . 1 . . . . . . Parts Lost 23 | . . . . . . . 1 . 2 . 1 . 15 4 Power 1 | . . . . . . . . . . . . . 1 . Propulsion 4 | . . . . . . . . . 1 . . . 1 2 Utility 11 | . . . . . . . 1 . 1 . . . 8 1 Weapon 7 | . . . . . . . . . . . 1 . 5 1 Highest Loss Streak 7 | . . . . . . . 1 . 2 . 1 . 7 4 To Critical Strikes 2 | . . . . . . . . . . . 1 . 1 . Average Backups 11 | 1 7 10 10 11 10 11 11 12 12 12 12 13 12 4 Power . | . 1 1 . 1 . . . 1 1 1 1 1 . . Propulsion 1 | . 3 5 2 . . . 1 2 2 2 2 2 1 . Utility 4 | . . 3 3 6 5 6 4 3 3 3 5 5 5 3 Weapon 3 | . 1 1 3 4 4 4 3 3 3 4 3 3 3 . Tool/Special . | . . . . . . . . . . . . . . . Unused Backups 26 | . 1 . 13 . 1 1 2 2 . 1 . . 1 4 Power . | . . . . . . . . . . . . . . . Propulsion 11 | . . . 8 . . . 2 1 . . . . . . Utility 9 | . . . 2 . 1 1 . . . 1 . . 1 3 Weapon 5 | . 1 . 3 . . . . 1 . . . . . . Tool/Special 1 | . . . . . . . . . . . . . . 1 Average Slot Usage (%) 93 | . 97 100 99 100 100 100 93 91 91 92 92 92 89 48 Engine 8 | . 14 14 11 11 11 11 9 7 6 7 7 7 5 . Treads 21 | . 28 28 21 22 22 22 18 23 22 23 23 23 18 11 Device 13 | . 3 . 10 11 11 11 16 15 15 15 15 15 20 . Storage 8 | . 14 14 11 11 11 11 9 7 7 7 7 7 6 5 Processor 22 | . 8 14 21 22 22 22 26 23 23 23 23 23 26 24 Protection 3 | . . . . . . . 1 6 6 7 7 7 3 . Ballistic Gun 1 | . 14 14 2 . . . . . . . . . . 4 Ballistic Cannon 11 | . 13 14 19 22 22 22 11 7 7 7 7 7 6 . Peak Build Rating 49 | 6 8 8 19 19 19 19 33 42 42 43 44 40 49 25 Average Rating 30 | 4 6 8 14 19 19 19 29 40 41 41 40 40 45 22 On Entrance 24 | . 6 8 8 19 19 19 19 33 42 42 41 40 40 25 Avg Prop Armor Cover (%) 8 | . . . . . . . 8 . . . . . . . Naked Turns . | . . . . . . . . . . . . . . . Heaviest Build 53 | 13 20 20 37 37 37 37 46 52 52 52 52 52 53 11 Greatest Support 73 | 40 40 40 40 40 40 40 44 70 70 73 73 73 73 42 Greatest Overweight (x) 1 | . . . . . . . 1 . . . . . 1 . Average Overweight (x) . | . . . . . . . . . . . . . . . Largest Inventory Capacity 15 | 8 10 10 15 15 15 15 15 15 15 15 15 15 15 5 Average Capacity 13 | 6 8 10 11 15 15 15 15 15 15 15 15 15 14 5 Most Carried 15 | 4 10 10 15 15 15 15 15 15 15 15 15 15 15 5 Average Carried 13 | 1 7 10 11 15 14 15 14 14 14 14 14 15 13 4 Final Capacity 15 | 8 10 10 15 15 15 15 15 15 15 15 15 15 5 5 Final Carried 15 | 4 10 10 15 15 15 15 15 15 14 15 15 15 5 5 Class Distribution -------------------- 39% | Mutant 31% | Scientist-Mutant 25% | Scavenger-Mutant 3% | Scientist-Skirmisher Dominant Class ---------------- Mutant | -10/Materials Mutant | -10/Mines Mutant | -9/Materials Mutant | -9/Mines Mutant | -9/Exiles Mutant | -8/Mines Mutant | -8/Materials Scientist-Mutant | -7/Factory Scientist-Mutant | -7/Garrison Scientist-Mutant | -7/Factory Scientist-Mutant | -7/Lower Caves Scientist-Mutant | -7/Lower Caves Scavenger-Mutant | -6/Factory Mutant | -6/Lower Caves Resources | -11 -10 -10 -9 -9 -9 -8 -8 -7 -7 -7 -7 -7 -6 -6 ----------- Run | Yrd Mat Min Mat Min Exi Min Mat Fac Gar Fac Low Low Fac Low Matter Collected 4628 | 195 311 . 838 . 20 . 625 786 494 323 266 8 762 . Remotely 3617 | . . . 838 . . . 528 786 380 323 221 8 533 . Salvage Created 4688 | . 445 37 1000 . . . 763 872 369 433 50 . 719 . Parts 255 | . 30 . 50 . . . 35 50 16 18 5 . 51 . Haulers Intercepted 9 | . 2 . 2 . . . 3 1 . . . . 1 . Recyclers Shooed 2 | . . . . . . . . . . 1 . . 1 . Parts Field Recycled . | . . . . . . . . . . . . . . . Retrieved Matter . | . . . . . . . . . . . . . . . Parts Self-Destructed 5 | . . . . . . . . . . . 5 . . . Prevented 1 | . . . . . . . . . . . 1 . . . Parts Restored . | . . . . . . . . . . . . . . . Kills | -11 -10 -10 -9 -9 -9 -8 -8 -7 -7 -7 -7 -7 -6 -6 ------- Run | Yrd Mat Min Mat Min Exi Min Mat Fac Gar Fac Low Low Fac Low Combat Hostiles Destroyed 117 | . 13 . 30 . . . 15 24 12 2 4 . 17 . Guns 6 | . 4 . 2 . . . . . . . . . . . Cannons 111 | . 9 . 28 . . . 15 24 12 2 4 . 17 . Classes Destroyed 18 | . 5 1 5 . . . 2 2 1 . 1 . 1 . Worker 15 | . . . 2 . . . . 4 . . . . 9 . Builder 2 | . . . . . . . 1 . . 1 . . . . Tunneler 1 | . 1 . . . . . . . . . . . . . Hauler 9 | . 2 . 2 . . . 3 1 . . . . 1 . Recycler 9 | . . 1 1 . . . 1 2 . 4 . . . . Minesweeper 1 | . . . . . . . . . . . 1 . . . Mechanic 2 | . . . 1 . . . 1 . . . . . . . Operator 3 | . . . 1 . . . 1 . . . . . 1 . Watcher 15 | . 1 . 1 . . . 4 5 . . . . 4 . Swarmer 30 | . 5 . 10 . . . . 9 . . 4 . 2 . Cutter 2 | . . . . . . . . . 2 . . . . . Grunt 46 | . 8 . 12 . . . 11 8 6 . . . 1 . Brawler 1 | . . . . . . . 1 . . . . . . . Duelist 4 | . . . 1 . . . . . 2 . . . 1 . Sentry 15 | . . . 7 . . . 3 2 . 1 . . 2 . Hunter 10 | . . . . . . . . 2 . 1 . . 7 . Programmer 8 | . . . . . . . . 3 2 . . . 3 . Heavy 1 | . . . . . . . . . . . . . 1 . Best Kill Streak 17 | . 5 1 6 . . . 6 17 7 3 4 . 9 . Combat Bots Only 13 | . 3 . 5 . . . 4 13 7 1 4 . 4 . Max Kills in Single Turn 2 | . 2 1 2 . . . 2 2 1 2 1 . 2 . Gunslinging . | . . . . . . . . . . . . . . . Exploded . | . . . . . . . . . . . . . . . Melee . | . . . . . . . . . . . . . . . Uniques/NPCs Destroyed . | . . . . . . . . . . . . . . . Combat | -11 -10 -10 -9 -9 -9 -8 -8 -7 -7 -7 -7 -7 -6 -6 -------- Run | Yrd Mat Min Mat Min Exi Min Mat Fac Gar Fac Low Low Fac Low Hostile Shots Fired 636 | . 23 . 107 . . . 66 105 49 . 34 . 220 32 Missed 191 | . 5 . 27 . . . 22 36 11 . 9 . 76 5 Hits 445 | . 18 . 80 . . . 44 69 38 . 25 . 144 27 Melee 5 | . . . 1 . . . . . 4 . . . . . Projectile 440 | . 18 . 79 . . . 44 69 34 . 25 . 144 27 AOE 1 | . . . . . . . . . 1 . . . . . Critical Strikes 18 | . . . 3 . . . 2 1 3 . 1 . 8 . Part Disruptions 1 | . . . . . . . . . 1 . . . . . Damage Taken 7434 | . 186 . 984 . . . 693 966 741 117 362 . 2973 412 Core 1244 | . 33 . 154 . . . 82 70 13 . 32 . 664 196 Absorbed by Shields . | . . . . . . . . . . . . . . . Regen/Repaired (Parts) 398 | . . . 261 . . . . . . . . . 137 . Core Remaining (%) 83 | 100 . 86 . . . 61 85 . . . . 83 . . Volleys Fired 425 | . 29 . 83 . . . 68 78 37 8 19 . 99 4 Largest 2 | . 2 . 2 . . . 2 1 1 1 1 . 2 1 Hottest 84 | . 50 . 63 . . . 63 50 50 50 50 . 84 33 Shots Fired 593 | . 58 . 165 . . . 94 80 38 10 19 1 124 4 Gun 67 | . 29 . 29 . . . . . . . . . 5 4 Cannon 526 | . 29 . 136 . . . 94 80 38 10 19 1 119 . Launcher . | . . . . . . . . . . . . . . . Special . | . . . . . . . . . . . . . . . Kinetic 593 | . 58 . 165 . . . 94 80 38 10 19 1 124 4 Thermal . | . . . . . . . . . . . . . . . Explosive . | . . . . . . . . . . . . . . . Electromagnetic . | . . . . . . . . . . . . . . . Robot Hit Streak 25 | . 25 . 11 . . . 21 20 7 15 9 . 25 1 Robot Miss Streak 5 | . 5 . 3 . . . 2 2 4 . 1 . 3 1 Penetration Max 1 | . . . . . . . 1 1 . . . . 1 . Secondary Targets . | . . . . . . . . . . . . . . . Shots Hit Robots 446 | . 42 . 110 . . . 79 68 21 9 13 . 102 2 Core Hits 188 | . 22 . 44 . . 1 29 29 11 7 5 . 40 . Critical Kills . | . . . . . . . . . . . . . . . Critical Parts Destroyed . | . . . . . . . . . . . . . . . Critical Strikes 48 | . 1 . 7 . . . 8 13 3 2 3 . 11 . Blast 48 | . 1 . 7 . . . 8 13 3 2 3 . 11 . Melee Attacks . | . . . . . . . . . . . . . . . Impact . | . . . . . . . . . . . . . . . Slashing . | . . . . . . . . . . . . . . . Piercing . | . . . . . . . . . . . . . . . Sneak Attacks . | . . . . . . . . . . . . . . . Combat Hostiles . | . . . . . . . . . . . . . . . Follow-up Attacks . | . . . . . . . . . . . . . . . Damage Inflicted 16269 | . 675 11 2055 . . 19 3056 3939 1310 468 635 . 4081 20 Guns 661 | . 275 . 349 . . . . . . . . . 17 20 Cannons 15398 | . 396 . 1697 . . . 3041 3808 1310 468 635 . 4043 . Explosions 102 | . . . . . . . . 102 . . . . . . Melee . | . . . . . . . . . . . . . . . Ramming 108 | . 4 11 9 . . 19 15 29 . . . . 21 . Kinetic 16059 | . 671 . 2046 . . . 3041 3808 1310 468 635 . 4060 20 Thermal 102 | . . . . . . . . 102 . . . . . . Explosive . | . . . . . . . . . . . . . . . Electromagnetic . | . . . . . . . . . . . . . . . Impact . | . . . . . . . . . . . . . . . Slashing . | . . . . . . . . . . . . . . . Piercing . | . . . . . . . . . . . . . . . Highest Corruption 7 | . . . . . . . 2 3 7 7 7 7 1 1 Average Corruption 3 | . . . . . . . 2 1 4 7 7 7 1 1 Corruption Purged . | . . . . . . . . . . . . . . . Corruption Blocked . | . . . . . . . . . . . . . . . Effects 91 | . . . . . . . 10 16 17 20 21 6 . 1 Message Errors 26 | . . . . . . . 3 3 6 8 5 1 . . Matter Fused 18 | . . . . . . . 2 2 3 4 4 2 . 1 Heat Flow Errors 12 | . . . . . . . 3 1 3 3 2 . . . Energy Discharges 8 | . . . . . . . 1 2 2 . 3 . . . Parts Rejected 2 | . . . . . . . . . 1 . 1 . . . Parts Fused 1 | . . . . . . . . 1 . . . . . . Data Loss (minor) 14 | . . . . . . . 1 4 . 3 4 2 . . Data Loss (major) 1 | . . . . . . . . 1 . . . . . . Misfires 7 | . . . . . . . . 2 1 2 1 1 . . Alerts 1 | . . . . . . . . . 1 . . . . . Weapon Failures 1 | . . . . . . . . . . . 1 . . . Overload Shots . | . . . . . . . . . . . . . . . Overflow Damage 1129 | . . . 34 . . . 180 438 128 40 24 . 285 . Projectiles 1129 | . . . 34 . . . 180 438 128 40 24 . 285 . Explosions . | . . . . . . . . . . . . . . . Melee . | . . . . . . . . . . . . . . . Knockbacks 73 | . 3 . 10 . . . 16 17 8 2 5 . 12 . Impact 1 | . 1 . . . . . . . . . . . . . Kinetic 72 | . 2 . 10 . . . 16 17 8 2 5 . 12 . Secondary . | . . . . . . . . . . . . . . . Self-Inflicted Damage . | . . . . . . . . . . . . . . . Shots . | . . . . . . . . . . . . . . . Rammed 14 | . 2 2 1 . . 3 1 3 . . . . 2 . Targets Rammed 17 | . 2 3 2 . . 3 1 3 . . . . 3 . Kicked . | . . . . . . . . . . . . . . . Crushed 3 | . . 1 1 . . . . . . . . . 1 . Highest Temperature 343 | . 6 . 24 . . . 137 64 233 182 188 6 . 343 Average Temperature 49 | . 3 . 6 . . . 58 32 89 79 80 4 . 180 Received Heat Transfer 1107 | . 54 . 243 . . . 387 153 234 . . . 36 . Siege Activations . | . . . . . . . . . . . . . . . Martial Activations . | . . . . . . . . . . . . . . . Shielding Activations . | . . . . . . . . . . . . . . . Robots Disrupted . | . . . . . . . . . . . . . . . Combat Hostiles . | . . . . . . . . . . . . . . . Robots Corrupted . | . . . . . . . . . . . . . . . Combat Hostiles . | . . . . . . . . . . . . . . . Parts Fried . | . . . . . . . . . . . . . . . Impact Corruptions . | . . . . . . . . . . . . . . . Robots Melted . | . . . . . . . . . . . . . . . Combat Hostiles . | . . . . . . . . . . . . . . . Parts Melted . | . . . . . . . . . . . . . . . Heat Transferred 50 | . . . . . . . . 50 . . . . . . Parts Sabotaged . | . . . . . . . . . . . . . . . Parts Stolen . | . . . . . . . . . . . . . . . Parts Stripped . | . . . . . . . . . . . . . . . Power Chain Reactions . | . . . . . . . . . . . . . . . Alert | -11 -10 -10 -9 -9 -9 -8 -8 -7 -7 -7 -7 -7 -6 -6 ------- Run | Yrd Mat Min Mat Min Exi Min Mat Fac Gar Fac Low Low Fac Low Maximum Alert Level 2 | . . . 1 . . . . 1 2 1 . . . . Low Security (%) 72 | 100 100 100 58 100 . 100 100 24 28 68 . . 100 . Level 1 24 | . . . 41 . . . . 75 29 31 . . . . Level 2 2 | . . . . . . . . . 41 . . . . . Level 3 . | . . . . . . . . . . . . . . . Level 4 . | . . . . . . . . . . . . . . . Level 5 . | . . . . . . . . . . . . . . . High Security . | . . . . . . . . . . . . . . . Max Security . | . . . . . . . . . . . . . . . Peak Influence 500 | . 183 64 384 142 . 7 145 386 500 262 . . 134 . Initial 262 | . . 64 18 142 . . . 54 168 262 . . . . Average 130 | . 59 58 178 128 . . 67 228 336 186 . . 38 . Influence Increases 4016 | . 423 5 950 . . 7 549 878 352 156 95 . 601 . Destroy 0b10 Robot/C 2380 | . 260 . 640 . . . 300 480 240 40 80 . 340 . Destroy 0b10 Robot/NC 295 | . 20 5 50 . . . 55 60 . 25 5 . 75 . Destroy Leader 602 | . 56 . 170 . . . 84 122 20 20 10 . 120 . Allied During Kill 9 | . . . 9 . . . . . . . . . . . Successful Hack 192 | . 10 . 61 . . 7 57 . 14 40 . . 3 . Select Force Hacks 30 | . . . . . . . 30 . . . . . . . Disable Machine 225 | . . . . . . . . 120 45 30 . . 30 . Destroy Structure 103 | . 2 . 5 . . . 8 51 18 1 . . 18 . Partial Spotted 30 | . . . . . . . 15 15 . . . . . . Lose Combat Pursuer 150 | . 75 . 15 . . . . 30 15 . . . 15 . Influence Decreases 4016 | . 256 123 633 254 112 7 429 758 92 484 267 . 496 105 Entered New Map 950 | . . 103 31 224 112 . . 66 72 238 64 . . 40 Time Decay 2681 | . 256 20 562 30 . 7 419 532 . 246 193 . 356 60 Lost Part 185 | . . . . . . . 10 . 20 . 10 . 140 5 Lost Ally 50 | . . . 40 . . . . 10 . . . . . . Purge Threat 150 | . . . . . . . . 150 . . . . . . Squads Dispatched 17 | . 1 . 5 . . . 1 5 . 1 . . 4 . Investigation 4 | . . . 3 . . . 1 . . . . . . . Extermination 7 | . . . . . . . . 3 . 1 . . 3 . Reinforcement 6 | . 1 . 2 . . . . 2 . . . . 1 . Assault . | . . . . . . . . . . . . . . . Garrison . | . . . . . . . . . . . . . . . Intercept . | . . . . . . . . . . . . . . . Searches Triggered . | . . . . . . . . . . . . . . . Construction Impeded . | . . . . . . . . . . . . . . . Haulers Reinforced 2 | . . . . . . . . 2 . . . . . . Active Scanning Responses . | . . . . . . . . . . . . . . . Cargo Convoy Interrupts . | . . . . . . . . . . . . . . . Stealth | -11 -10 -10 -9 -9 -9 -8 -8 -7 -7 -7 -7 -7 -6 -6 --------- Run | Yrd Mat Min Mat Min Exi Min Mat Fac Gar Fac Low Low Fac Low Distress Signals 6 | . . . 3 . . . 1 2 . . . . . . Communications Jammed . | . . . . . . . . . . . . . . . Distress Signals . | . . . . . . . . . . . . . . . Times Spotted 170 | . 24 . 43 . . . 24 33 10 . 4 . 28 4 Peak Tracking Total 6 | . 4 . 5 . . . 3 5 6 . 4 . 5 4 Tactical Retreats 8 | . 3 . 1 . . . . 2 1 . . . 1 . Traps | -11 -10 -10 -9 -9 -9 -8 -8 -7 -7 -7 -7 -7 -6 -6 ------- Run | Yrd Mat Min Mat Min Exi Min Mat Fac Gar Fac Low Low Fac Low Traps Triggered 7 | . . . 2 . . . 1 1 1 2 . . . . Indirectly . | . . . . . . . . . . . . . . . Trap Hack Attempts . | . . . . . . . . . . . . . . . Triggered . | . . . . . . . . . . . . . . . Disarmed . | . . . . . . . . . . . . . . . Reprogrammed . | . . . . . . . . . . . . . . . Reused 1 | . . . . . . . . . . . . . . 1 Traps Extracted . | . . . . . . . . . . . . . . . Installed 3 | . . . . . . . . . . . 2 . . 1 Triggered 1 | . . . . . . . . . . . . . . 1 Most Traps Carried 1 | . . . . . . . . . . . 1 1 1 1 Machines | -11 -10 -10 -9 -9 -9 -8 -8 -7 -7 -7 -7 -7 -6 -6 ---------- Run | Yrd Mat Min Mat Min Exi Min Mat Fac Gar Fac Low Low Fac Low Machines Disabled 16 | . 1 . . . . . . 8 3 2 . . 2 . Max in Single Turn 5 | . 1 . . . . . . 5 1 1 . . 1 . Machines Repaired . | . . . . . . . . . . . . . . . Machines Dismantled . | . . . . . . . . . . . . . . . Machines Sabotaged . | . . . . . . . . . . . . . . . Overloaded Fab Kills . | . . . . . . . . . . . . . . . Hacking | -11 -10 -10 -9 -9 -9 -8 -8 -7 -7 -7 -7 -7 -6 -6 --------- Run | Yrd Mat Min Mat Min Exi Min Mat Fac Gar Fac Low Low Fac Low Machines Accessed 46 | . 4 . 12 . 2 1 11 6 1 3 . . 6 . Terminals 28 | . 4 . 8 . . 1 8 2 1 2 . . 2 . Fabricators 2 | . . . . . . . . 1 . . . . 1 . Repair Stations 5 | . . . 2 . . . 1 . . . . . 2 . Recycling Units . | . . . . . . . . . . . . . . . Scanalyzers 7 | . . . 2 . . . 2 1 . 1 . . 1 . Garrison Access 2 | . . . . . . . . 2 . . . . . . Total Hacks 152 | . 17 . 32 . 5 4 47 20 2 12 . . 13 . Successful 92 | . 7 . 18 . 5 1 32 13 1 8 . . 7 . Failed 59 | . 9 . 14 . . 3 15 7 1 4 . . 6 . Catastrophic 9 | . . . 5 . . . 1 1 1 . . . 1 . Database Lockouts 1 | . 1 . . . . . . . . . . . . . Manual 47 | . 14 . 7 . 1 4 14 2 1 1 . . 3 . Terminals 90 | . 17 . 18 . . 4 32 7 2 7 . . 3 . Fabricators 5 | . . . . . . . . 2 . . . . 3 . Repair Stations 18 | . . . 10 . . . 3 . . . . . 5 . Recycling Units . | . . . . . . . . . . . . . . . Scanalyzers 31 | . . . 4 . . . 12 8 . 5 . . 2 . Garrison Access 3 | . . . . . . . . 3 . . . . . . Terminal Hacks 39 | . 4 . 5 . 5 1 15 4 1 3 . . 1 . Record 4 | . . . . . 4 . . . . . . . . . Robot Analysis 8 | . 2 . . . . 1 4 . . 1 . . . . Prototype ID Bank 6 | . 1 . 3 . . . 1 . . 1 . . . . Branch Access Points 3 | . . . 1 . . . 1 . . 1 . . . . Emergency Access Points 1 | . . . . . . . . . 1 . . . . . Terminal Index 2 | . . . . . . . 1 1 . . . . . . Alert Level 4 | . . . . . . . 1 2 . . . . 1 . Unreport Threat 1 | . . . . . . . . 1 . . . . . . Locate Traps 3 | . . . 1 . . . 2 . . . . . . . Dispatch Records 1 | . . . . . . . 1 . . . . . . . Security Status 1 | . . . . . . . 1 . . . . . . . Patrol Status 1 | . 1 . . . . . . . . . . . . . Hauler Manifests 1 | . . . . . . . 1 . . . . . . . Zone Layout 2 | . . . . . . . 2 . . . . . . . Proto ID Catalog 1 | . . . . . 1 . . . . . . . . . Fabricator Hacks 1 | . . . . . . . . . . . . . 1 . Network Status 1 | . . . . . . . . . . . . . 1 . Repair Station Hacks 11 | . . . 8 . . . 1 . . . . . 2 . Scan Component 6 | . . . 4 . . . 1 . . . . . 1 . Repair 5 | . . . 4 . . . . . . . . . 1 . Recycling Unit Hacks . | . . . . . . . . . . . . . . . Scanalyzer 25 | . . . 3 . . . 10 7 . 4 . . 1 . Insert Component 6 | . . . . . . . 3 2 . 1 . . . . Analyze 6 | . . . . . . . 3 2 . 1 . . . . Retrieve Study 13 | . . . 3 . . . 4 3 . 2 . . 1 . Garrison Access Hacks 1 | . . . . . . . . 1 . . . . . . Unlock Access 1 | . . . . . . . . 1 . . . . . . Unauthorized Hacks 15 | . 3 . 2 . . . 6 1 . 1 . . 2 . Terminals 12 | . 3 . 1 . . . 5 1 . 1 . . 1 . Assimilate 2 | . . . . . . . 2 . . . . . . . Botnet 9 | . 2 . 1 . . . 3 1 . 1 . . 1 . Operators 1 | . 1 . . . . . . . . . . . . . Fabricators . | . . . . . . . . . . . . . . . Repair Stations 2 | . . . 1 . . . . . . . . . 1 . Mechanics 2 | . . . 1 . . . . . . . . . 1 . Recycling Units . | . . . . . . . . . . . . . . . Scanalyzers 1 | . . . . . . . 1 . . . . . . . Extract 1 | . . . . . . . 1 . . . . . . . Garrison Access . | . . . . . . . . . . . . . . . Data Cores Recovered 3 | . . . 1 . . . 1 . . . . . 1 . Used 2 | . . . 1 . . . 1 . . . . . . . Hacking Detections 42 | . 4 . 12 . . 1 10 5 1 3 . . 6 . Full Trace Events 1 | . 1 . . . . . . . . . . . . . Feedback Events . | . . . . . . . . . . . . . . . Feedback Blocked . | . . . . . . . . . . . . . . . Robot Schematics Acquired . | . . . . . . . . . . . . . . . Robots Built . | . . . . . . . . . . . . . . . Authchips . | . . . . . . . . . . . . . . . Time . | . . . . . . . . . . . . . . . Total Robot Build Rating . | . . . . . . . . . . . . . . . Part Schematics Acquired 9 | . . . . . . . 7 2 . . . . . . Parts Built . | . . . . . . . . . . . . . . . Authchips . | . . . . . . . . . . . . . . . Time . | . . . . . . . . . . . . . . . Total Part Build Rating . | . . . . . . . . . . . . . . . Part Studies Acquired 13 | . . . 3 . . . 4 3 . 2 . . 1 . Parts Repaired 5 | . . . 4 . . . . . . . . . 1 . Time 142 | . . . 104 . . . . . . . . . 38 . Parts Recycled . | . . . . . . . . . . . . . . . Recycled Matter . | . . . . . . . . . . . . . . . Retrieved Matter . | . . . . . . . . . . . . . . . Retrieved Components . | . . . . . . . . . . . . . . . Parts Scanalyzed 6 | . . . . . . . 3 2 . 1 . . . . Part Schematics Acquired 5 | . . . . . . . 3 2 . . . . . . Parts Damaged . | . . . . . . . . . . . . . . . Bothacking | -11 -10 -10 -9 -9 -9 -8 -8 -7 -7 -7 -7 -7 -6 -6 ------------ Run | Yrd Mat Min Mat Min Exi Min Mat Fac Gar Fac Low Low Fac Low Used RIF Installer . | . . . . . . . . . . . . . . . Robots Hacked . | . . . . . . . . . . . . . . . Non-combat . | . . . . . . . . . . . . . . . Combat . | . . . . . . . . . . . . . . . Robot Hacks Applied . | . . . . . . . . . . . . . . . Relay Couplers Released 4 | . . . . . . . . . 4 . . . . . Programmers 4 | . . . . . . . . . 4 . . . . . Fabnet Peak Effective % . | . . . . . . . . . . . . . . . Robots Rewired . | . . . . . . . . . . . . . . . Allies Hacked . | . . . . . . . . . . . . . . . Hacks Repelled . | . . . . . . . . . . . . . . . Allies | -11 -10 -10 -9 -9 -9 -8 -8 -7 -7 -7 -7 -7 -6 -6 -------- Run | Yrd Mat Min Mat Min Exi Min Mat Fac Gar Fac Low Low Fac Low Total Allies 4 | . . 3 . . . . 1 . . . . . . . Largest Group 3 | . . 3 3 . . . 1 1 . . . . . . Highest-Rated Group 40 | . . 40 40 . . . 10 10 . . . . . . Highest-Rated Ally 16 | . . 16 16 . . . 10 10 . . . . . . Initial Warlord ECA Mod 2 | . . . . . . . . . . 2 2 2 1 1 Total Orders . | . . . . . . . . . . . . . . . Ally Attacks 30 | . . . 30 . . . . . . . . . . . Total Damage 313 | . . . 313 . . . . . . . . . . . Kills 4 | . . . 4 . . . . . . . . . . . Allies Corrupted . | . . . . . . . . . . . . . . . Allies Melted . | . . . . . . . . . . . . . . . Intel | -11 -10 -10 -9 -9 -9 -8 -8 -7 -7 -7 -7 -7 -6 -6 ------- Run | Yrd Mat Min Mat Min Exi Min Mat Fac Gar Fac Low Low Fac Low Active Infowar (turns) 10059 | . 194 . 1658 71 371 622 1427 1642 660 532 699 165 1863 155 Optics 9865 | . . . 1658 71 371 622 1427 1642 660 532 699 165 1863 155 Sensors 1439 | . 194 . . . . . . . . . 672 165 408 . Jamming 23 | . . . . . . . . 23 . . . . . . Robot Analysis Total 8 | . 2 . . . . 1 4 . . 1 . . . . Derelict Logs Recovered 2 | . . 1 . . . . . . . . 1 . . . Drone Launches . | . . . . . . . . . . . . . . . Drone Recoveries . | . . . . . . . . . . . . . . . Exploration | -11 -10 -10 -9 -9 -9 -8 -8 -7 -7 -7 -7 -7 -6 -6 ------------- Run | Yrd Mat Min Mat Min Exi Min Mat Fac Gar Fac Low Low Fac Low Turns Passed 10866 | 66 795 50 1748 71 371 622 1427 1642 660 532 699 165 1863 155 Spaces Moved 5360 | 35 402 29 786 39 230 386 653 788 324 310 379 107 788 104 Core 17 | 2 . . . . . . . . . . . . . 15 Treads 5343 | 33 402 29 786 39 230 386 653 788 324 310 379 107 788 89 Legs . | . . . . . . . . . . . . . . . Wheels . | . . . . . . . . . . . . . . . Hover . | . . . . . . . . . . . . . . . Flight . | . . . . . . . . . . . . . . . Fastest Speed 50 | 50 160 160 160 160 160 160 145 145 158 155 155 155 152 50 Average Speed 158 | 153 160 160 160 160 160 160 170 155 158 157 155 155 155 138 Slowest Speed 240 | 160 160 160 160 160 160 160 240 158 158 158 155 155 200 160 Overloaded Moves . | . . . . . . . . . . . . . . . Propulsion Burnouts . | . . . . . . . . . . . . . . . Robots Hopped . | . . . . . . . . . . . . . . . Potential Cave-ins . | . . . . . . . . . . . . . . . Cave-ins Triggered . | . . . . . . . . . . . . . . . Exploration Rate (%) 36 | 3 61 10 82 27 64 71 54 28 37 12 56 12 19 17 Regions Visited 14 Branch Regions 7 Pre-discovered Areas 3 | . . 1 . . 1 . . . . . 1 . . . Known Exits Taken 3 | . . . 1 . . . . 1 . 1 . . . . Unknown Exits Taken 10 | 1 1 1 . 1 1 1 1 . . . 1 1 1 . Scrap Searched 6 | . . . . . . 1 . . . . 1 4 . . Spaces Dug 15 | . . . . . . . . 3 3 . 2 . 7 . Terrain Destroyed 117 | . . . 1 . . . 7 67 13 1 8 1 19 . Melee . | . . . . . . . . . . . . . . . Projectile 67 | . . . 1 . . . 7 17 13 1 8 1 19 . AOE 50 | . . . . . . . . 50 . . . . . . Terrain Rammed . | . . . . . . . . . . . . . . . Walls Destroyed . | . . . . . . . . . . . . . . . Machines Disabled . | . . . . . . . . . . . . . . . Actions | -11 -10 -10 -9 -9 -9 -8 -8 -7 -7 -7 -7 -7 -6 -6 --------- Run | Yrd Mat Min Mat Min Exi Min Mat Fac Gar Fac Low Low Fac Low Total 7019 | 44 496 31 1122 48 234 390 859 1092 417 344 460 106 1264 112 Wait 983 | . 45 . 183 10 . . 112 188 46 11 48 . 339 1 Move 5346 | 34 401 28 785 38 229 385 652 787 323 309 378 106 787 104 Hop . | . . . . . . . . . . . . . . . Pick Up 73 | 4 8 . 21 . 2 1 8 8 3 4 4 . 10 . Fast Attach 21 | 6 2 . 5 . . . 1 1 1 . 1 . 4 . Attach 29 | . . . 3 . . . 5 3 4 . 1 . 13 . Detach 7 | . 1 . 1 . . . 2 . . . . . 2 1 Swap 44 | . 3 . 13 . 1 . 2 12 1 5 5 . 2 . Drop 71 | . 5 . 26 . 2 1 8 12 2 7 2 . 5 1 Fire 425 | . 29 . 83 . . . 68 78 37 8 19 . 99 4 Melee . | . . . . . . . . . . . . . . . Ram . | . . . . . . . . . . . . . . . Kick . | . . . . . . . . . . . . . . . Crush 17 | . 2 3 2 . . 3 1 3 . . . . 3 . Escape Stasis . | . . . . . . . . . . . . . . . Rewire . | . . . . . . . . . . . . . . . Trap 3 | . . . . . . . . . . . 2 . . 1 Miscellaneous . | . . . . . . . . . . . . . . . Route ------- -11/Scrapyard -10/Materials (discovered 2 exits: *Mat / [*Min]) -10/Mines -9/Materials (discovered 7 exits: *Mat x3 / *Min x2 / *Sto x2) -9/Mines -9/Exiles (discovered 2 exits: *Min x2) -8/Mines -8/Materials (discovered 2 exits: *Fac x2) -7/Factory (discovered 2 exits: *Low / Gar) -7/Garrison -7/Factory (discovered 2 exits: *Low x2) -7/Lower Caves -7/Lower Caves -6/Factory -6/Lower Caves History --------- Turn | Location | Event 18 | -11/Scrapyard | Discovered new exit (range 15) 67 | -11/Scrapyard | Entered Materials 249 | -10/Materials | Discovered new exit (range 4) 302 | -10/Materials | Build established: Mutant 537 | -10/Materials | Discovered new exit (range 16) 578 | -10/Materials | Central database locked down 862 | -10/Materials | Entered Mines 893 | -10/Mines | Discovered new exit (range 8) 904 | -10/Mines | Assisted by bots powering up and referring to "LRC-V3" 912 | -10/Mines | Entered Materials 912 | -9/Materials | Accompanied by 3 allies 912 | -9/Materials | Evolved 2 slots: Utility x2 1110 | -9/Materials | Discovered new exit (range 17) 1118 | -9/Materials | Met 8R-AWN 1438 | -9/Materials | Discovered new exit (range 5) 1541 | -9/Materials | Identified exit to Mines 1541 | -9/Materials | Identified exit to Storage 1658 | -9/Materials | Build established: Scavenger-Mutant 1728 | -9/Materials | Repaired Lgt. Cannon+ 1756 | -9/Materials | Repaired Lgt. Cannon+ 1801 | -9/Materials | Discovered new exit (range 18) 1940 | -9/Materials | Repaired Lgt. Treads 1968 | -9/Materials | Repaired Lgt. Treads 2313 | -9/Materials | Discovered new exit (range 17) 2450 | -9/Materials | Build established: Mutant 2660 | -9/Materials | Entered Mines 2661 | -9/Mines | Followed 8R-AWN into the Mines 2700 | -9/Mines | Assembled infested the area 2725 | -9/Mines | Discovered new exit (range 5) 2731 | -9/Mines | Entered Exiles 2752 | -9/Exiles | Discovered new exit (range 16) 2770 | -9/Exiles | Welcomed by 8R-AWN 2799 | -9/Exiles | Met EX-HEX 2842 | -9/Exiles | Met EX-BIN 2861 | -9/Exiles | Aligned with FarCom system 2863 | -9/Exiles | Given EX-Vault access code 2901 | -9/Exiles | Opened EX-Vault 2911 | -9/Exiles | Found Skeleton Box 2947 | -9/Exiles | Warned to stay clear of 0b10 Research branches 2989 | -9/Exiles | Met EX-DEC 3003 | -9/Exiles | Learned location of Zion (-7) 3090 | -9/Exiles | Discovered new exit (range 10) 3102 | -9/Exiles | Left Exiles lab with Skeleton Box 3102 | -9/Exiles | Entered Mines 3194 | -8/Mines | Discovered new exit (range 6) 3724 | -8/Mines | Entered Materials 3724 | -8/Materials | Evolved 2 slots: Utility x2 4022 | -8/Materials | Build established: Scavenger-Mutant 4487 | -8/Materials | Build established: Mutant 4517 | -8/Materials | Discovered new exit (range 18) 4778 | -8/Materials | Discovered new exit (range 17) 5151 | -8/Materials | Entered Factory 5151 | -7/Factory | Accompanied by 1 ally 5151 | -7/Factory | Evolved 2 slots: Propulsion x1, Utility x1 5455 | -7/Factory | Build established: Scavenger-Mutant 5603 | -7/Factory | Destroyed 13 combat bots 6009 | -7/Factory | Build established: Scientist-Mutant 6776 | -7/Factory | Discovered new exit (range 2) 6792 | -7/Factory | Identified exit to Garrison 6793 | -7/Factory | Entered Garrison 6979 | -7/Garrison | Triggered checkpoint 7047 | -7/Garrison | Triggered checkpoint 7210 | -7/Garrison | Destroyed 7 combat bots 7287 | -7/Garrison | Discovered new exit (range 8) 7453 | -7/Garrison | Entered Factory 7714 | -7/Factory | Identified exit to Lower Caves 7985 | -7/Factory | Entered Lower Caves 8051 | -7/Lower Caves | Met a Warlord Commander 8052 | -7/Lower Caves | Learned location of Warlord (-5) 8053 | -7/Lower Caves | Warlord Commander delivered Encrypted Comm Array 8055 | -7/Lower Caves | Found Encrypted Comm Array 8383 | -7/Lower Caves | Found DCF Scrap (12 items) 8545 | -7/Lower Caves | Learned 4 Factory zone layouts 8569 | -7/Lower Caves | Encountered a Warlord checkpoint 8647 | -7/Lower Caves | Discovered new exit (range 12) 8684 | -7/Lower Caves | Entered another Lower Caves area 8702 | -7/Lower Caves | Discovered new exit (range 11) 8849 | -7/Lower Caves | Entered Factory 8849 | -6/Factory | Evolved 2 slots: Utility x2 9156 | -6/Factory | Build established: Scientist-Skirmisher 9528 | -6/Factory | Repaired Hvy. Assault Cannon+ 9779 | -6/Factory | Build established: Scavenger-Mutant 10443 | -6/Factory | Discovered new exit (range 18) 10653 | -6/Factory | Core integrity fell below 50% 10654 | -6/Factory | Lost 7 parts (1p1n4u1w) 10712 | -6/Factory | Entered Lower Caves 10723 | -6/Lower Caves | Lost 5 parts (2u3w) 10831 | -6/Lower Caves | Core integrity fell below 20% 10867 | -6/Lower Caves | Destroyed by S-27 Virus with Autogun Last Messages --------------- 10834_ S-27 Virus triggered Fire Trap. 10834_ Burning plasma bursts from the floor. 10834_ S-27 Virus destroyed. 10835_ S-27 Virus heat damages core (-6). 10835_ S-27 Virus overheating. 10836_ Adv. Treads+ destroyed. 10838_ S-27 Virus heat damages VTOL Module. 10838_ S-27 Virus overheating. 10840_ S-27 Virus heat damages core (-5). 10842_ S-27 Virus heat damages VTOL Module, Autogun, VTOL Module. 10846_ S-27 Virus overheating. 10848_ S-27 Virus heat spikes uncontrollably. 10848_ S-27 Virus overheating. 10850_ S-27 Virus heat spikes uncontrollably. 10850_ S-27 Virus overheating. 10851_ S-27 Virus heat damages Autogun. 10854_ S-27 Virus heat short circuits Autogun. 10854_ S-27 Virus overheating. 10862_ Lgt. Treads+ destroyed. Map ----- +----------------------------------------------------+ | ?????????????????????????????????????????????????? | | ?????????????????????????????????????????????????? | | ?????????????????????????????????????????????????? | | ?????????????????????????????????????????????????? | | ?????????????????????????????????????????????????? | | ?????????????????????????????????????????????????? | | ?????#######?????????????????????????????????????? | | ?????# #?????????????????????????????????????? | | ?????# """ #?????????????????????????????????????? | | ?????# """ #?????????????????????????????????????? | | ?????# """ #?????????????????????????????????????? | | ?????# """ ######???????? #??????????????????????? | | ????## # ##### # #?????????????????????? | | ??### # #?##???????????####### | | ?## ##?????????# # | | ## #####??????# ####??????# """ # | | # ##???????????# # ##?????# """ # | | # ######????????# ####### """ # | | # ## #??#????### """ # | | # ## #??## ### ??? | | # ### #??# #?# #?????# | | ## ##?# ####??# ### # #???#### | | ?## ##?## #??#### #?# #???# | | ?## #??# ##??# #?## # ##### ## | | ?# #??# ##??# ### # # # # ###### | | ?# ##??# #### @ # #????# | | ?#### #???## ### s ## # #????# | | ????# #????###?# s ####### ### ## #??? | | ????# #????????# ###?????## ##?# # #?? | | ????# #????????# ##????????####??# ## # ? | | ????# #???###### ##??????????????? #? # # # | | ????# #??## ##???????????????# ? ? | | ????# #??# ##????????????????# ?? ##?# | | ????#%#?## ##????????????????? #? ##??? | | ????# #?# #????????????????? ? ?????# | | ??? #?# #????????????????? ### ?? ?????? | | ? #?## #???????????????? #??? ? #????? | | ####??# #???????????????? #???? ??#????? | | ??????## #??????????????? ????? ##???????? | | ????????# ##??????????????? ?????##????????? | | ?????????# #????????????????#????????????????? | | ??????????## #?????????????????????????????????? | | ???????????#####?????????????????????????????????? | | ?????????????????????????????????????????????????? | | ?????????????????????????????????????????????????? | | ?????????????????????????????????????????????????? | | ?????????????????????????????????????????????????? | | ?????????????????????????????????????????????????? | | ?????????????????????????????????????????????????? | | ?????????????????????????????????????????????????? | +----------------------------------------------------+ Best States ------------- Heat Dissipation 51 Energy Generation 18 Energy Capacity 310 Matter Stores 300 Matter Capacity 550 Sight Range 18 Robot Scan Range 15 Terrain Scan Density 10 Jamming Range 12 Armor Coverage 225 Evasion (%) 40 Targeting Accuracy 24 Target Analysis 5 Recoil Reduction 3 Offensive Hacking 10 Item Schematics ----------------- Hvy. Assault Cannon | -8/Materials | Scanalyzed Sml. Laser | -8/Materials | Extracted Adv. Targeting Computer | -8/Materials | Extracted Imp. Signal Interpreter | -8/Materials | Extracted Imp. Light Cannon | -8/Materials | Extracted Adv. Treads | -8/Materials | Scanalyzed Transmission Jammer | -8/Materials | Scanalyzed Gauss Cannon | -7/Factory | Scanalyzed Prc. Grenade Launcher | -7/Factory | Scanalyzed Robot Schematics ------------------ None Fabricated ------------ Nothing Repaired ---------- Lgt. Cannon | 30% | -9/Materials Lgt. Cannon | 43% | -9/Materials Lgt. Treads | 51% | -9/Materials Lgt. Treads | 70% | -9/Materials Hvy. Assault Cannon | 45% | -6/Factory Studied --------- Lgt. Cannon | -9/Materials | Hacked Particle Gun | -9/Materials | Hacked Hvy. Assault Cannon | -9/Materials | Hacked Imp. Light Cannon | -8/Materials | Hacked Lgt. Treads | -8/Materials | Hacked Adv. Treads | -8/Materials | Hacked Rnf. Ion Engine | -8/Materials | Hacked Gauss Cannon | -7/Factory | Hacked Arm. Treads | -7/Factory | Hacked Med. Treads | -7/Factory | Hacked Assault Cannon | -7/Factory | Hacked Imp. Treads | -7/Factory | Hacked Mic. Fission Core | -6/Factory | Hacked Alien Tech Used ----------------- None Achievements -------------- None Challenges ------------ None Game ------ Seed MachineColdBoregun Manual? 0 Play Time 01:32:59 Cumulative 213.0 hours Start 2026.08.02 @ 19:30:27 End 2026.08.03 @ 04:09:45 Sessions 2 Manual Loads 0 Difficulty Rogue Special Mode None Game No. 124 Rogue 124 Adventurer 0 Explorer 0 Win Type - Total 4 Types 4/0/0/0/0/0/0/0/0/0 Lore% 77 Gallery% 66 Achievement% 57 Wizard Run 0 Options --------- Layout 1 ASCII 0 Keyboard 0 Movement Numpad Keybinds 0 Fullscreen 1 Font 24/Smallcaps Map View 50x35 Zoom Use 0% Tactical HUD 1 Map Filters NONE Filters NONE Steam 1 RUN: 1652d5df-6043-4241-8517-8d661fa50f56